[Event "*** SCC Grand Prix: Titled Tuesday Blitz"]
[Site "Chess.com"]
[Date "2020.08.11"]
[Round "4"]
[White "Maksimus1998"]
[Black "GM_Levan_Pantsulaia"]
[Result "0-1"]
[WhiteElo "2517"]
[BlackElo "2798"]
[TimeControl "180+1"]
[EndTime "10:38:08 PDT"]
[Termination "GM_Levan_Pantsulaia won by resignation"]

1. e4 {[%clk 0:03:00.9]} 1... c5 {[%clk 0:03:00]} 2. Nf3 {[%clk 0:02:59.7]} 2...
e6 {[%clk 0:03:00.5]} 3. g3 {[%clk 0:02:59.4]} 3... Nc6 {[%clk 0:02:57.4]} 4.
Bg2 {[%clk 0:02:58.9]} 4... Nf6 {[%clk 0:02:57.9]} 5. Qe2 {[%clk 0:02:58.7]}
5... d6 {[%clk 0:02:54.6]} 6. O-O {[%clk 0:02:58.6]} 6... Be7 {[%clk 0:02:54.4]}
7. Rd1 {[%clk 0:02:58.7]} 7... O-O {[%clk 0:02:54]} 8. d4 {[%clk 0:02:58.6]}
8... cxd4 {[%clk 0:02:53.6]} 9. Nxd4 {[%clk 0:02:59.5]} 9... Qc7 {[%clk
0:02:52.1]} 10. Nc3 {[%clk 0:02:55.6]} 10... a6 {[%clk 0:02:51.8]} 11. Be3
{[%clk 0:02:54.5]} 11... Ne5 {[%clk 0:02:49.6]} 12. f4 {[%clk 0:02:23.8]} 12...
Nc4 {[%clk 0:02:47.6]} 13. Bc1 {[%clk 0:02:24.3]} 13... Bd7 {[%clk 0:02:39.7]}
14. b3 {[%clk 0:02:21.6]} 14... Na5 {[%clk 0:02:39.1]} 15. Bb2 {[%clk 0:02:21]}
15... Rfd8 {[%clk 0:02:35.6]} 16. Rac1 {[%clk 0:02:14.9]} 16... Rac8 {[%clk
0:02:34.5]} 17. g4 {[%clk 0:02:05.9]} 17... g6 {[%clk 0:02:28.1]} 18. f5 {[%clk
0:01:56.7]} 18... Bf8 {[%clk 0:02:14.5]} 19. fxe6 {[%clk 0:01:19.1]} 19... fxe6
{[%clk 0:02:15.4]} 20. Rf1 {[%clk 0:01:04.3]} 20... Bg7 {[%clk 0:02:13.9]} 21.
Rcd1 {[%clk 0:01:04.3]} 21... Nc6 {[%clk 0:02:10.7]} 22. Nxc6 {[%clk 0:00:58.2]}
22... Bxc6 {[%clk 0:02:09.1]} 23. h4 {[%clk 0:00:38.3]} 23... Rf8 {[%clk
0:02:07.2]} 24. Bh3 {[%clk 0:00:23.9]} 24... Qe7 {[%clk 0:02:03.5]} 25. Qd3
{[%clk 0:00:17.2]} 25... Nd7 {[%clk 0:01:58.3]} 26. Qxd6 {[%clk 0:00:14.7]}
26... Qxh4 {[%clk 0:01:57.8]} 27. Qxe6+ {[%clk 0:00:14.7]} 27... Kh8 {[%clk
0:01:57.9]} 28. Rxf8+ {[%clk 0:00:14.9]} 28... Rxf8 {[%clk 0:01:54.9]} 29. Rxd7
{[%clk 0:00:09.2]} 29... Bxd7 {[%clk 0:01:39.7]} 30. Qxd7 {[%clk 0:00:10.1]}
30... Qxh3 {[%clk 0:01:33.3]} 0-1

[Event "*** SCC Grand Prix: Titled Tuesday Blitz"]
[Site "Chess.com"]
[Date "2020.08.11"]
[Round "4"]
[White "killer311"]
[Black "Nikolaj_6"]
[Result "1/2-1/2"]
[WhiteElo "2448"]
[BlackElo "2613"]
[TimeControl "180+1"]
[EndTime "10:38:10 PDT"]
[Termination "Game drawn by repetition"]

1. d4 {[%clk 0:03:00.9]} 1... Nf6 {[%clk 0:02:59.4]} 2. c4 {[%clk 0:03:01.4]}
2... c5 {[%clk 0:02:58.4]} 3. d5 {[%clk 0:03:01.3]} 3... e6 {[%clk 0:02:58.8]}
4. Nc3 {[%clk 0:03:00.8]} 4... exd5 {[%clk 0:02:59.2]} 5. cxd5 {[%clk
0:03:01.1]} 5... d6 {[%clk 0:02:59.8]} 6. g3 {[%clk 0:03:01.7]} 6... g6 {[%clk
0:03:00.2]} 7. Bg2 {[%clk 0:03:02.3]} 7... Bg7 {[%clk 0:03:00.8]} 8. Nf3 {[%clk
0:03:03]} 8... O-O {[%clk 0:03:01.4]} 9. O-O {[%clk 0:03:03.7]} 9... Re8 {[%clk
0:03:02]} 10. Re1 {[%clk 0:03:04]} 10... a6 {[%clk 0:03:01.4]} 11. a4 {[%clk
0:03:03.7]} 11... Nbd7 {[%clk 0:03:01.1]} 12. e4 {[%clk 0:03:03]} 12... Ng4
{[%clk 0:03:00.6]} 13. Nd2 {[%clk 0:02:57.9]} 13... Nge5 {[%clk 0:02:58]} 14.
Qc2 {[%clk 0:02:57.9]} 14... c4 {[%clk 0:02:55.4]} 15. Bf1 {[%clk 0:02:29.1]}
15... Nc5 {[%clk 0:02:44.3]} 16. Bxc4 {[%clk 0:02:25.1]} 16... Nxc4 {[%clk
0:02:38.5]} 17. Nxc4 {[%clk 0:02:25.1]} 17... Bg4 {[%clk 0:02:23]} 18. Bf4
{[%clk 0:02:17.6]} 18... Bf8 {[%clk 0:02:01.9]} 19. b4 {[%clk 0:02:10.4]} 19...
Nd7 {[%clk 0:01:53.5]} 20. Nxd6 {[%clk 0:02:10.3]} 20... Bxd6 {[%clk 0:01:51.5]}
21. Bxd6 {[%clk 0:02:11.2]} 21... Rc8 {[%clk 0:01:49.4]} 22. Qd2 {[%clk
0:02:03.2]} 22... Qf6 {[%clk 0:01:48.1]} 23. e5 {[%clk 0:01:56.3]} 23... Nxe5
{[%clk 0:01:45.2]} 24. Bxe5 {[%clk 0:01:56.1]} 24... Rxe5 {[%clk 0:01:44.7]} 25.
Rxe5 {[%clk 0:01:56.2]} 25... Qxe5 {[%clk 0:01:44.6]} 26. Rc1 {[%clk 0:01:56.6]}
26... Bf3 {[%clk 0:01:40.8]} 27. d6 {[%clk 0:01:19.8]} 27... Qf5 {[%clk
0:01:25]} 28. Qe3 {[%clk 0:01:15.8]} 28... Rd8 {[%clk 0:01:14.6]} 29. Ne2 {[%clk
0:01:01.6]} 29... Rxd6 {[%clk 0:01:07.8]} 30. Nd4 {[%clk 0:01:00.8]} 30... Rxd4
{[%clk 0:01:04.6]} 31. Qxd4 {[%clk 0:01:00.1]} 31... Qh3 {[%clk 0:01:04]} 32.
Qd8+ {[%clk 0:00:55.7]} 32... Kg7 {[%clk 0:01:04]} 33. Qd4+ {[%clk 0:00:56.1]}
33... Kg8 {[%clk 0:01:03.8]} 34. Qd8+ {[%clk 0:00:55.1]} 34... Kg7 {[%clk
0:01:03.6]} 35. Qd4+ {[%clk 0:00:55.3]} 35... Kg8 {[%clk 0:00:46.2]} 1/2-1/2

[Event "*** SCC Grand Prix: Titled Tuesday Blitz"]
[Site "Chess.com"]
[Date "2020.08.11"]
[Round "4"]
[White "TudorAnton"]
[Black "LuisFSiles"]
[Result "1-0"]
[WhiteElo "2556"]
[BlackElo "2314"]
[TimeControl "180+1"]
[EndTime "10:38:12 PDT"]
[Termination "TudorAnton won on time"]

1. Nf3 {[%clk 0:03:00.9]} 1... Nf6 {[%clk 0:02:59.1]} 2. g3 {[%clk 0:03:00.1]}
2... g6 {[%clk 0:02:59.5]} 3. Bg2 {[%clk 0:03:00.1]} 3... Bg7 {[%clk 0:03:00]}
4. O-O {[%clk 0:03:00.7]} 4... O-O {[%clk 0:03:00.1]} 5. d4 {[%clk 0:03:01.3]}
5... d6 {[%clk 0:02:59.1]} 6. c4 {[%clk 0:03:01.6]} 6... c6 {[%clk 0:02:59.2]}
7. Nc3 {[%clk 0:03:01.8]} 7... Qa5 {[%clk 0:02:59.2]} 8. h3 {[%clk 0:03:01.8]}
8... e5 {[%clk 0:02:59.1]} 9. e4 {[%clk 0:02:59.2]} 9... Nbd7 {[%clk 0:02:45.7]}
10. Re1 {[%clk 0:02:41.2]} 10... a6 {[%clk 0:02:44.1]} 11. Rb1 {[%clk
0:02:17.6]} 11... Re8 {[%clk 0:02:29.9]} 12. b4 {[%clk 0:02:12.7]} 12... Qc7
{[%clk 0:02:29.5]} 13. c5 {[%clk 0:02:04.7]} 13... exd4 {[%clk 0:02:09.7]} 14.
cxd6 {[%clk 0:02:02.9]} 14... Qxd6 {[%clk 0:02:09.5]} 15. Bf4 {[%clk 0:02:01.7]}
15... Qxf4 {[%clk 0:01:49.6]} 16. gxf4 {[%clk 0:02:00.7]} 16... dxc3 {[%clk
0:01:49.7]} 17. Qc2 {[%clk 0:01:49.2]} 17... Nb6 {[%clk 0:01:27.4]} 18. Ne5
{[%clk 0:01:49]} 18... Nh5 {[%clk 0:01:22]} 19. Qxc3 {[%clk 0:01:44.9]} 19...
Nxf4 {[%clk 0:01:19.6]} 20. Qe3 {[%clk 0:01:41.1]} 20... Bxe5 {[%clk 0:01:08.2]}
21. Qxb6 {[%clk 0:01:39.4]} 21... Nxh3+ {[%clk 0:00:58]} 22. Bxh3 {[%clk
0:01:38.9]} 22... Bxh3 {[%clk 0:00:58.9]} 23. Qxb7 {[%clk 0:01:34.1]} 23... Bf4
{[%clk 0:00:48.7]} 24. Qxc6 {[%clk 0:01:30.6]} 24... Rab8 {[%clk 0:00:41.7]} 25.
e5 {[%clk 0:01:25.7]} 25... g5 {[%clk 0:00:31]} 26. Rb3 {[%clk 0:01:22.1]} 26...
Re6 {[%clk 0:00:23.1]} 27. Qc7 {[%clk 0:01:17.3]} 1-0

[Event "*** SCC Grand Prix: Titled Tuesday Blitz"]
[Site "Chess.com"]
[Date "2020.08.11"]
[Round "4"]
[White "eCztery"]
[Black "xamax2000"]
[Result "0-1"]
[WhiteElo "2417"]
[BlackElo "2620"]
[TimeControl "180+1"]
[EndTime "10:38:13 PDT"]
[Termination "xamax2000 won on time"]

1. e4 {[%clk 0:03:00.9]} 1... e5 {[%clk 0:02:54.3]} 2. Nf3 {[%clk 0:03:00.8]}
2... Nc6 {[%clk 0:02:54.8]} 3. d4 {[%clk 0:03:00.6]} 3... exd4 {[%clk
0:02:54.8]} 4. Bc4 {[%clk 0:03:01]} 4... Nf6 {[%clk 0:02:50.4]} 5. O-O {[%clk
0:03:00.6]} 5... Nxe4 {[%clk 0:02:42.8]} 6. Nc3 {[%clk 0:02:56.8]} 6... dxc3
{[%clk 0:02:36.6]} 7. Re1 {[%clk 0:02:34.5]} 7... Be7 {[%clk 0:02:25.8]} 8. Rxe4
{[%clk 0:02:31.3]} 8... O-O {[%clk 0:02:25.6]} 9. bxc3 {[%clk 0:02:30.8]} 9...
Bf6 {[%clk 0:02:24.7]} 10. Qd5 {[%clk 0:02:25.2]} 10... Ne7 {[%clk 0:02:17.6]}
11. Qh5 {[%clk 0:02:06.7]} 11... d5 {[%clk 0:01:53.9]} 12. Rxe7 {[%clk
0:02:02.7]} 12... Qxe7 {[%clk 0:01:34.5]} 13. Bxd5 {[%clk 0:01:40.7]} 13... Rd8
{[%clk 0:01:29.8]} 14. Ba3 {[%clk 0:00:06.9]} 14... Rxd5 {[%clk 0:01:15.9]} 15.
Qxd5 {[%clk 0:00:05.3]} 15... Qxa3 {[%clk 0:01:15.3]} 16. Rd1 {[%clk 0:00:02.9]}
16... c6 {[%clk 0:01:06.5]} 17. Qd3 {[%clk 0:00:01.9]} 17... Be6 {[%clk
0:01:06]} 18. Nd4 {[%clk 0:00:01.8]} 18... Bxd4 {[%clk 0:01:05.3]} 19. Qxd4
{[%clk 0:00:02.7]} 19... h6 {[%clk 0:01:04.6]} 20. h3 {[%clk 0:00:02.5]} 20...
Qxa2 {[%clk 0:01:04.5]} 21. Qc5 {[%clk 0:00:01.6]} 21... a5 {[%clk 0:01:03.7]}
0-1

[Event "*** SCC Grand Prix: Titled Tuesday Blitz"]
[Site "Chess.com"]
[Date "2020.08.11"]
[Round "4"]
[White "Jadeit90"]
[Black "grunbergmihai"]
[Result "0-1"]
[WhiteElo "2240"]
[BlackElo "2443"]
[TimeControl "180+1"]
[EndTime "10:38:14 PDT"]
[Termination "grunbergmihai won by resignation"]

1. c4 {[%clk 0:03:00.9]} 1... Nf6 {[%clk 0:02:59.3]} 2. g3 {[%clk 0:03:00.9]}
2... g6 {[%clk 0:02:59.9]} 3. Bg2 {[%clk 0:03:01.3]} 3... d5 {[%clk 0:03:00.8]}
4. cxd5 {[%clk 0:03:01.2]} 4... Nxd5 {[%clk 0:03:00.6]} 5. Nc3 {[%clk
0:03:02.1]} 5... Nb6 {[%clk 0:02:58.8]} 6. Nf3 {[%clk 0:03:02.2]} 6... Bg7
{[%clk 0:02:58.6]} 7. O-O {[%clk 0:03:02.5]} 7... O-O {[%clk 0:02:58.5]} 8. a4
{[%clk 0:03:02.8]} 8... a5 {[%clk 0:02:56]} 9. d4 {[%clk 0:03:02.5]} 9... Nc6
{[%clk 0:02:55.3]} 10. d5 {[%clk 0:03:02.1]} 10... Nb4 {[%clk 0:02:55.2]} 11. e4
{[%clk 0:03:02.1]} 11... e6 {[%clk 0:02:52.4]} 12. Bg5 {[%clk 0:02:57.2]} 12...
f6 {[%clk 0:02:46]} 13. Be3 {[%clk 0:02:57.3]} 13... exd5 {[%clk 0:02:45.9]} 14.
Bxb6 {[%clk 0:02:57.4]} 14... cxb6 {[%clk 0:02:45.5]} 15. exd5 {[%clk
0:02:55.6]} 15... f5 {[%clk 0:02:40.9]} 16. Nd4 {[%clk 0:02:54.4]} 16... Re8
{[%clk 0:02:36.9]} 17. Rc1 {[%clk 0:02:50.2]} 17... Bd7 {[%clk 0:02:26.1]} 18.
Qd2 {[%clk 0:02:43.8]} 18... Rc8 {[%clk 0:02:23.5]} 19. Rfd1 {[%clk 0:02:33.1]}
19... Qf6 {[%clk 0:02:22.5]} 20. h4 {[%clk 0:02:19.8]} 20... Rc5 {[%clk
0:02:18.5]} 21. Nf3 {[%clk 0:02:05.6]} 21... Rd8 {[%clk 0:02:10.5]} 22. h5
{[%clk 0:01:59.9]} 22... Be8 {[%clk 0:02:09.8]} 23. hxg6 {[%clk 0:01:51.3]}
23... hxg6 {[%clk 0:02:09.7]} 24. Qf4 {[%clk 0:01:33.1]} 24... Qd6 {[%clk
0:01:58.4]} 25. Qh4 {[%clk 0:01:30.2]} 25... Bf6 {[%clk 0:01:37.5]} 26. Qh6
{[%clk 0:01:08.9]} 26... Qe7 {[%clk 0:01:32.2]} 27. Re1 {[%clk 0:01:07.6]} 27...
Qg7 {[%clk 0:01:31.7]} 28. Qxg7+ {[%clk 0:01:06.2]} 28... Kxg7 {[%clk
0:01:31.7]} 29. Ne5 {[%clk 0:01:04.2]} 29... Bxe5 {[%clk 0:01:28.7]} 30. Rxe5
{[%clk 0:01:03.8]} 30... Nd3 {[%clk 0:01:28.2]} 31. Rce1 {[%clk 0:00:55.1]}
31... Nxe5 {[%clk 0:01:27.8]} 32. Rxe5 {[%clk 0:00:56]} 32... Bf7 {[%clk
0:01:27.7]} 33. f4 {[%clk 0:00:54.5]} 33... Kf6 {[%clk 0:01:25.4]} 34. Kf2
{[%clk 0:00:54.3]} 34... Re8 {[%clk 0:01:24.2]} 35. Rxe8 {[%clk 0:00:54.2]}
35... Bxe8 {[%clk 0:01:24]} 36. Ke3 {[%clk 0:00:55.1]} 36... Rc4 {[%clk
0:01:21.9]} 37. Kd3 {[%clk 0:00:54]} 37... Rb4 {[%clk 0:01:21]} 38. d6 {[%clk
0:00:50]} 38... Rxb2 {[%clk 0:01:14]} 39. Bxb7 {[%clk 0:00:48.5]} 39... Ke6
{[%clk 0:01:12.5]} 40. Nd1 {[%clk 0:00:39.9]} 40... Rb3+ {[%clk 0:01:11.2]} 0-1

[Event "*** SCC Grand Prix: Titled Tuesday Blitz"]
[Site "Chess.com"]
[Date "2020.08.11"]
[Round "4"]
[White "Eternauta2400"]
[Black "econpower"]
[Result "0-1"]
[WhiteElo "2505"]
[BlackElo "2720"]
[TimeControl "180+1"]
[EndTime "10:38:15 PDT"]
[Termination "econpower won on time"]

1. e4 {[%clk 0:03:00.9]} 1... d6 {[%clk 0:02:59.7]} 2. d4 {[%clk 0:02:59.5]}
2... Nf6 {[%clk 0:03:00.1]} 3. Nc3 {[%clk 0:02:58.1]} 3... e5 {[%clk 0:03:00.5]}
4. Nf3 {[%clk 0:02:56.1]} 4... Nbd7 {[%clk 0:03:00.4]} 5. Bc4 {[%clk 0:02:55.7]}
5... c6 {[%clk 0:03:00.7]} 6. a4 {[%clk 0:02:50.3]} 6... Be7 {[%clk 0:03:00.7]}
7. O-O {[%clk 0:02:50.2]} 7... h6 {[%clk 0:02:59.5]} 8. Re1 {[%clk 0:02:49.6]}
8... Qc7 {[%clk 0:02:58.8]} 9. h3 {[%clk 0:02:47.9]} 9... Nf8 {[%clk 0:02:58.4]}
10. d5 {[%clk 0:02:13.5]} 10... g5 {[%clk 0:02:52.9]} 11. Be3 {[%clk 0:02:00]}
11... Ng6 {[%clk 0:02:51.6]} 12. a5 {[%clk 0:01:33.3]} 12... Rg8 {[%clk
0:02:42.5]} 13. a6 {[%clk 0:01:32.1]} 13... b5 {[%clk 0:02:34.7]} 14. Bf1 {[%clk
0:01:31.5]} 14... b4 {[%clk 0:02:27.8]} 15. Ne2 {[%clk 0:01:15.4]} 15... g4
{[%clk 0:02:01]} 16. hxg4 {[%clk 0:01:11.6]} 16... Bxg4 {[%clk 0:02:00.4]} 17.
Ng3 {[%clk 0:01:07.8]} 17... h5 {[%clk 0:01:43.1]} 18. dxc6 {[%clk 0:00:48.9]}
18... h4 {[%clk 0:01:37.9]} 19. Nf5 {[%clk 0:00:49.2]} 19... h3 {[%clk
0:01:35.5]} 20. g3 {[%clk 0:00:36.1]} 20... Nxe4 {[%clk 0:01:27.7]} 21. Nxe7
{[%clk 0:00:32.7]} 21... Nxe7 {[%clk 0:01:28.2]} 22. Bc5 {[%clk 0:00:20]} 22...
Nxc5 {[%clk 0:01:26.7]} 23. Bc4 {[%clk 0:00:15.2]} 23... e4 {[%clk 0:01:04]} 0-1

[Event "*** SCC Grand Prix: Titled Tuesday Blitz"]
[Site "Chess.com"]
[Date "2020.08.11"]
[Round "4"]
[White "AliKa2810"]
[Black "onnoelgersma"]
[Result "0-1"]
[WhiteElo "2601"]
[BlackElo "2431"]
[TimeControl "180+1"]
[EndTime "10:38:15 PDT"]
[Termination "onnoelgersma won by resignation"]

1. d4 {[%clk 0:03:00.9]} 1... d5 {[%clk 0:02:59.9]} 2. c4 {[%clk 0:03:00.2]}
2... e6 {[%clk 0:03:00.1]} 3. Nc3 {[%clk 0:02:59.9]} 3... Nf6 {[%clk 0:03:00.8]}
4. cxd5 {[%clk 0:02:59.7]} 4... exd5 {[%clk 0:03:01.7]} 5. Bg5 {[%clk
0:02:59.8]} 5... c6 {[%clk 0:03:02.5]} 6. e3 {[%clk 0:02:59.9]} 6... Bd6 {[%clk
0:03:03.3]} 7. Bd3 {[%clk 0:02:58.8]} 7... O-O {[%clk 0:03:03.9]} 8. Qc2 {[%clk
0:02:58.7]} 8... h6 {[%clk 0:03:04.5]} 9. Bh4 {[%clk 0:02:58.6]} 9... Re8 {[%clk
0:03:05]} 10. Nge2 {[%clk 0:02:58.8]} 10... a5 {[%clk 0:03:05.6]} 11. h3 {[%clk
0:02:59]} 11... Na6 {[%clk 0:03:05.6]} 12. a3 {[%clk 0:02:59.1]} 12... Nc7
{[%clk 0:03:05.7]} 13. O-O {[%clk 0:02:59.2]} 13... Ne6 {[%clk 0:03:02.1]} 14.
f4 {[%clk 0:02:20.4]} 14... Nc7 {[%clk 0:01:36.7]} 15. e4 {[%clk 0:02:08.9]}
15... dxe4 {[%clk 0:01:30.5]} 16. Nxe4 {[%clk 0:02:09.8]} 16... Be7 {[%clk
0:01:30.8]} 17. Nxf6+ {[%clk 0:01:58.1]} 17... Bxf6 {[%clk 0:01:31.7]} 18. Bxf6
{[%clk 0:01:58.1]} 18... Qxf6 {[%clk 0:01:32.6]} 19. Nc3 {[%clk 0:01:58.6]}
19... Qxd4+ {[%clk 0:01:22.5]} 20. Kh2 {[%clk 0:01:53.1]} 20... Qf6 {[%clk
0:00:54.3]} 21. Ne4 {[%clk 0:01:40.2]} 21... Qh4 {[%clk 0:00:45.2]} 22. f5
{[%clk 0:01:27.9]} 22... Nd5 {[%clk 0:00:41.7]} 23. Rf3 {[%clk 0:01:02.7]} 23...
Bxf5 {[%clk 0:00:19.6]} 24. Rxf5 {[%clk 0:00:59.3]} 24... Ne3 {[%clk 0:00:20]}
25. Qf2 {[%clk 0:00:54.2]} 25... Ng4+ {[%clk 0:00:20.2]} 0-1

[Event "*** SCC Grand Prix: Titled Tuesday Blitz"]
[Site "Chess.com"]
[Date "2020.08.11"]
[Round "4"]
[White "GiantThresher"]
[Black "GadimbayliA"]
[Result "1/2-1/2"]
[WhiteElo "2723"]
[BlackElo "2856"]
[TimeControl "180+1"]
[EndTime "10:38:16 PDT"]
[Termination "Game drawn by repetition"]

1. e4 {[%clk 0:02:59.2]} 1... e5 {[%clk 0:01:52.8]} 2. Nf3 {[%clk 0:02:37.8]}
2... d5 {[%clk 0:01:50.5]} 3. d3 {[%clk 0:02:33.3]} 3... dxe4 {[%clk 0:01:48.1]}
4. dxe4 {[%clk 0:02:34.2]} 4... Qxd1+ {[%clk 0:01:48.7]} 5. Kxd1 {[%clk
0:02:35.1]} 5... Nc6 {[%clk 0:01:49.6]} 6. c3 {[%clk 0:02:33.2]} 6... Nf6 {[%clk
0:01:48.5]} 7. Nbd2 {[%clk 0:02:28.3]} 7... Ng4 {[%clk 0:01:41]} 8. Ke1 {[%clk
0:02:14.6]} 8... Bc5 {[%clk 0:01:40.1]} 9. Bb5 {[%clk 0:02:13.7]} 9... Bxf2+
{[%clk 0:01:37.1]} 10. Ke2 {[%clk 0:02:13.7]} 10... Bb6 {[%clk 0:01:34.4]} 11.
h3 {[%clk 0:02:13.7]} 11... Nf6 {[%clk 0:01:33.8]} 12. Nxe5 {[%clk 0:02:13.8]}
12... a6 {[%clk 0:01:23.8]} 13. Ba4 {[%clk 0:02:08.8]} 13... Bd7 {[%clk
0:01:21.7]} 14. Nxd7 {[%clk 0:02:07.9]} 14... Nxd7 {[%clk 0:01:22.6]} 15. Nc4
{[%clk 0:01:53.3]} 15... O-O-O {[%clk 0:01:20.7]} 16. Bxc6 {[%clk 0:01:49.3]}
16... bxc6 {[%clk 0:01:20.3]} 17. Re1 {[%clk 0:01:47.3]} 17... Rhe8 {[%clk
0:01:20.1]} 18. Kf3 {[%clk 0:01:45.2]} 18... Nc5 {[%clk 0:01:17.9]} 19. Be3
{[%clk 0:01:17.2]} 19... Nd3 {[%clk 0:01:14]} 20. Red1 {[%clk 0:00:53.5]} 20...
Bxe3 {[%clk 0:01:07]} 21. Kxe3 {[%clk 0:00:54.4]} 21... Nc5 {[%clk 0:01:00.4]}
22. Rxd8+ {[%clk 0:00:49.2]} 22... Kxd8 {[%clk 0:01:01.3]} 23. Rd1+ {[%clk
0:00:49.5]} 23... Kc8 {[%clk 0:00:58.7]} 24. e5 {[%clk 0:00:48.6]} 24... f6
{[%clk 0:00:54.8]} 25. Kf4 {[%clk 0:00:48.9]} 25... fxe5+ {[%clk 0:00:52.5]} 26.
Nxe5 {[%clk 0:00:49.8]} 26... Rf8+ {[%clk 0:00:53.1]} 27. Ke3 {[%clk 0:00:43.6]}
27... Re8 {[%clk 0:00:49.8]} 28. Kf4 {[%clk 0:00:44]} 28... Rf8+ {[%clk
0:00:41.9]} 29. Ke3 {[%clk 0:00:40.5]} 29... Re8 {[%clk 0:00:42.1]} 30. Kf4
{[%clk 0:00:40.7]} 1/2-1/2

[Event "*** SCC Grand Prix: Titled Tuesday Blitz"]
[Site "Chess.com"]
[Date "2020.08.11"]
[Round "4"]
[White "HouseOfDurin"]
[Black "juancruzarias"]
[Result "0-1"]
[WhiteElo "2089"]
[BlackElo "2380"]
[TimeControl "180+1"]
[EndTime "10:38:23 PDT"]
[Termination "juancruzarias won by resignation"]

1. d4 {[%clk 0:03:00.9]} 1... e6 {[%clk 0:02:57.7]} 2. Bg5 {[%clk 0:03:01.4]}
2... Qxg5 {[%clk 0:02:56.2]} 3. Nf3 {[%clk 0:03:02]} 3... Qd8 {[%clk 0:02:55.6]}
4. e3 {[%clk 0:03:02.4]} 4... Nf6 {[%clk 0:02:54.3]} 5. c4 {[%clk 0:03:02.8]}
5... Bb4+ {[%clk 0:02:53.6]} 6. Nc3 {[%clk 0:03:02.5]} 6... O-O {[%clk
0:02:49.7]} 7. Qc2 {[%clk 0:02:59]} 7... b6 {[%clk 0:02:49.3]} 8. Bd3 {[%clk
0:02:57.8]} 8... Bb7 {[%clk 0:02:48.8]} 9. O-O-O {[%clk 0:02:56.3]} 9... d5
{[%clk 0:02:44.7]} 10. a3 {[%clk 0:02:51.8]} 10... Bxc3 {[%clk 0:02:44.7]} 11.
Qxc3 {[%clk 0:02:52.7]} 11... Nbd7 {[%clk 0:02:43.4]} 12. c5 {[%clk 0:02:50.9]}
12... Ne4 {[%clk 0:02:28.2]} 13. Bxe4 {[%clk 0:02:45]} 13... dxe4 {[%clk
0:02:29.1]} 14. c6 {[%clk 0:02:45.4]} 14... Bxc6 {[%clk 0:02:26.5]} 15. Qxc6
{[%clk 0:02:45.9]} 15... exf3 {[%clk 0:02:27]} 16. gxf3 {[%clk 0:02:41.5]} 16...
Nf6 {[%clk 0:02:27.4]} 17. e4 {[%clk 0:02:15.6]} 17... Qd6 {[%clk 0:02:25]} 18.
Qc3 {[%clk 0:02:10.9]} 18... Qf4+ {[%clk 0:02:25.2]} 19. Kb1 {[%clk 0:02:10.6]}
19... c5 {[%clk 0:02:21.6]} 20. dxc5 {[%clk 0:01:50.2]} 20... bxc5 {[%clk
0:02:20.7]} 21. Rhg1 {[%clk 0:01:38]} 21... g6 {[%clk 0:02:11.3]} 22. Rg3 {[%clk
0:01:00.7]} 22... Rfd8 {[%clk 0:02:09.3]} 23. Rdg1 {[%clk 0:00:55.8]} 23... Rac8
{[%clk 0:01:56.1]} 24. Rg5 {[%clk 0:00:43.6]} 24... c4 {[%clk 0:01:46.3]} 25. h4
{[%clk 0:00:42.6]} 25... Rd3 {[%clk 0:01:42.2]} 26. Qa5 {[%clk 0:00:17.4]} 26...
c3 {[%clk 0:01:36.1]} 27. Qa6 {[%clk 0:00:16.7]} 27... c2+ {[%clk 0:01:34.7]}
28. Ka2 {[%clk 0:00:16.7]} 28... c1=Q {[%clk 0:01:33.6]} 29. Rxc1 {[%clk
0:00:13.5]} 29... Rxa3+ {[%clk 0:01:22]} 30. Kxa3 {[%clk 0:00:07.6]} 30... Qxc1
{[%clk 0:01:22.4]} 31. Qxa7 {[%clk 0:00:04.7]} 31... Qa1+ {[%clk 0:01:22.3]} 32.
Kb3 {[%clk 0:00:05.2]} 32... Qxa7 {[%clk 0:01:22.8]} 0-1

[Event "*** SCC Grand Prix: Titled Tuesday Blitz"]
[Site "Chess.com"]
[Date "2020.08.11"]
[Round "4"]
[White "politeplayer"]
[Black "GameOverBro"]
[Result "1-0"]
[WhiteElo "2235"]
[BlackElo "2447"]
[TimeControl "180+1"]
[EndTime "10:38:25 PDT"]
[Termination "politeplayer won by resignation"]

1. e4 {[%clk 0:03:00.9]} 1... d6 {[%clk 0:02:59.6]} 2. d4 {[%clk 0:03:00.1]}
2... Nf6 {[%clk 0:02:58.3]} 3. Nc3 {[%clk 0:03:00.1]} 3... e5 {[%clk 0:02:57.9]}
4. Nge2 {[%clk 0:02:56.2]} 4... c6 {[%clk 0:02:56.9]} 5. f3 {[%clk 0:02:53.2]}
5... h5 {[%clk 0:02:55.3]} 6. Bg5 {[%clk 0:02:50.7]} 6... Nbd7 {[%clk
0:02:54.7]} 7. Qd2 {[%clk 0:02:49.9]} 7... a5 {[%clk 0:02:54.4]} 8. O-O-O {[%clk
0:02:49]} 8... a4 {[%clk 0:02:55]} 9. g3 {[%clk 0:02:38.8]} 9... Qa5 {[%clk
0:02:53.9]} 10. Bh3 {[%clk 0:02:29.4]} 10... Be7 {[%clk 0:02:49.9]} 11. dxe5
{[%clk 0:02:19.3]} 11... Nxe5 {[%clk 0:02:42.4]} 12. Bxc8 {[%clk 0:02:08]} 12...
Nxf3 {[%clk 0:02:30.6]} 13. Bxb7 {[%clk 0:01:53.4]} 13... Nxd2 {[%clk
0:02:26.8]} 14. Bxc6+ {[%clk 0:01:50.5]} 14... Kf8 {[%clk 0:02:25.4]} 15. Bxa8
{[%clk 0:01:45.4]} 15... Qxg5 {[%clk 0:02:17.9]} 16. Rxd2 {[%clk 0:01:42.5]}
16... h4 {[%clk 0:02:12.5]} 17. Rd1 {[%clk 0:01:32.6]} 17... hxg3 {[%clk
0:02:11.4]} 18. hxg3 {[%clk 0:01:24.2]} 18... a3 {[%clk 0:02:11.5]} 19. bxa3
{[%clk 0:01:19.5]} 19... d5 {[%clk 0:02:05.8]} 20. Bxd5 {[%clk 0:01:15.6]} 20...
Bxa3+ {[%clk 0:02:04.8]} 21. Kb1 {[%clk 0:01:15.4]} 21... Qe5 {[%clk 0:01:52]}
22. Bb3 {[%clk 0:01:10.6]} 22... Ke7 {[%clk 0:01:51.5]} 23. Nd4 {[%clk
0:01:05.3]} 23... Rc8 {[%clk 0:01:43.2]} 24. Nf5+ {[%clk 0:01:04.9]} 24... Kf8
{[%clk 0:01:10.5]} 25. Rd8+ {[%clk 0:01:02.8]} 25... Rxd8 {[%clk 0:01:10.6]} 26.
Rxd8+ {[%clk 0:01:00.5]} 26... Ne8 {[%clk 0:01:09.9]} 27. Ba4 {[%clk 0:00:43.9]}
1-0